bitfinex-derivatives/quotes_BTCF0:USTF0_20251207
["timestamp","ask_amount","ask_price","bid_price","bid_amount"]
[1765123330541,0.3608,89506.0,89505.0,0.37396]
[1765123332548,0.3618,89506.0,89505.0,0.37396]
[1765123333050,0.18838,89503.0,89502.0,0.29583]
[1765123333242,0.3618,89506.0,89505.0,0.36963]
[1765123333837,0.38739637,89506.0,89505.0,0.36963]
[1765123335152,0.02659637,89506.0,89505.0,0.36963]
[1765123335350,0.00016757,89511.0,89510.0,0.36963]
[1765123337050,0.00116757,89511.0,89510.0,0.36963]
[1765123339852,0.20864,89505.0,89492.0,0.3608]
[1765123340152,0.00116757,89511.0,89492.0,0.3608]
[1765123340153,0.00116757,89511.0,89501.0,0.0111721]
[1765123340355,1.7627,89510.0,89509.0,0.18262]
[1765123340750,1.7627,89510.0,89509.0,0.36963]
[1765123343357,1.7627,89510.0,89509.0,0.3808011]
[1765123344061,1.7637,89510.0,89509.0,0.7416011]
[1765123344860,1.7637,89510.0,89509.0,1.53356228]
[1765123344861,0.33340621,89510.0,89509.0,1.53356228]
[1765123345061,0.00016757,89511.0,89509.0,1.16393228]
[1765123345257,0.47721,89532.0,89531.0,0.0111684]
[1765123345258,0.11641,89532.0,89531.0,0.0111684]
[1765123346350,0.49222,89532.0,89531.0,0.0111684]
[1765123346556,0.11741,89532.0,89524.0,0.3608]
[1765123346762,0.3869792,89524.0,89523.0,0.00016757]
[1765123347366,0.41314238,89524.0,89523.0,0.00016757]
[1765123347958,0.41314238,89524.0,89513.0,0.3608]
[1765123347959,0.37581,89514.0,89513.0,0.3608]
[1765123348164,0.18926,89497.0,89496.0,0.0111727]
[1765123348355,0.11641,89505.0,89495.0,0.0111729]
[1765123348356,0.1275816,89505.0,89495.0,0.0111729]
[1765123348559,0.37581,89504.0,89503.0,0.0111719]
[1765123348760,0.40198273,89504.0,89503.0,0.0111719]
[1765123348957,0.37581,89499.0,89498.0,0.0111724]
[1765123350170,0.11641,89505.0,89502.0,0.011172]
[1765123350472,0.02617776,89504.0,89502.0,0.011172]
[1765123350676,0.11641,89505.0,89502.0,0.011172]
[1765123350874,0.02617671,89504.0,89502.0,0.371972]
[1765123351465,0.37581,89503.0,89502.0,0.011172]
[1765123351674,0.40198671,89503.0,89502.0,0.011172]
[1765123352877,0.21543671,89503.0,89502.0,0.011172]
[1765123353376,0.40198671,89503.0,89502.0,0.011172]
[1765123354673,0.18942757,89512.0,89511.0,0.0111709]
[1765123354877,0.21560727,89512.0,89511.0,0.3719709]
[1765123355079,0.00016757,89512.0,89511.0,0.7519709]
[1765123355376,0.00016757,89512.0,89511.0,0.4019709]
[1765123356280,0.18942757,89512.0,89511.0,0.7219709]
[1765123356576,0.18942757,89512.0,89511.0,0.3719709]
[1765123356771,0.00016757,89512.0,89511.0,0.3719709]
[1765123356973,0.37597757,89512.0,89511.0,0.3719709]
[1765123357180,0.40215517,89512.0,89511.0,0.0111709]
[1765123357865,0.49222,89508.0,89507.0,0.0111713]
[1765123358071,0.5183976,89508.0,89507.0,0.0111713]
[1765123358972,0.5183976,89508.0,89493.0,0.3608]
[1765123358973,0.37581,89494.0,89493.0,0.3719731]
[1765123359964,0.40201587,89494.0,89493.0,0.3719731]
[1765123360772,0.37581,89487.0,89476.0,0.3608]
[1765123360970,0.37581,89487.0,89461.0,0.0111771]
[1765123360971,0.37581,89462.0,89461.0,0.0111771]
[1765123361677,0.73661,89462.0,89461.0,0.0111771]
[1765123361878,0.76280799,89462.0,89461.0,0.0111771]
[1765123362272,0.40200799,89462.0,89461.0,0.0111771]
[1765123362573,0.37581,89462.0,89461.0,0.0111771]
[1765123364874,0.37581,89462.0,89461.0,0.0121771]
[1765123365881,0.37581,89462.0,89461.0,0.0111771]
[1765123367582,0.37581,89462.0,89461.0,0.0121771]
[1765123368178,0.37581,89462.0,89461.0,0.0111771]
[1765123368981,0.37681,89462.0,89461.0,0.0111771]
[1765123369486,0.5282,89458.0,89457.0,0.3608]
[1765123370273,0.10408,89460.0,89456.0,0.0111776]
[1765123370274,0.5282,89457.0,89456.0,0.0111776]
[1765123371077,0.5282,89457.0,89449.0,0.3608]
[1765123371078,0.5282,89450.0,89449.0,0.5172686]
[1765123371284,0.5282,89450.0,89449.0,0.3719786]
[1765123372782,0.5282,89450.0,89449.0,0.3729786]
[1765123374582,0.5282,89450.0,89449.0,0.6635586]
[1765123374781,0.10408,89460.0,89459.0,0.3017574]
[1765123374782,0.63228,89460.0,89459.0,0.3017574]
[1765123375087,0.63228,89460.0,89459.0,0.0111774]
[1765123375986,0.5282,89458.0,89457.0,0.3608]
[1765123376591,0.5282,89450.0,89449.0,0.3719785]
[1765123377384,0.5282,89447.0,89444.0,0.0111791]
[1765123378480,0.63228,89452.0,89451.0,0.29058]
[1765123378685,0.63228,89452.0,89451.0,0.65138]
[1765123379092,0.63228,89452.0,89451.0,0.50609]
[1765123379590,0.5282,89448.0,89447.0,0.1564689]
[1765123379885,0.5282,89448.0,89447.0,0.0111789]
[1765123380383,0.5282,89448.0,89446.0,0.0022795]
[1765123380586,0.1152583,89452.0,89446.0,0.0002795]
[1765123380587,0.50926,89447.0,89446.0,0.0002795]
[1765123381488,0.0111787,89449.0,89441.0,0.0111796]
[1765123381489,0.49085,89442.0,89441.0,0.0111796]
[1765123383590,0.49085,89442.0,89441.0,0.1064996]
[1765123384095,0.49085,89442.0,89441.0,0.0111796]
[1765123384293,0.49085,89442.0,89441.0,0.0131796]
[1765123384787,0.49085,89442.0,89400.0,1.02966469]
[1765123384788,0.49085,89407.0,89406.0,0.00027962]
[1765123384990,0.85165,89407.0,89406.0,0.00027962]
[1765123385291,0.3608,89407.0,89406.0,0.87201962]
[1765123385590,0.85165,89407.0,89406.0,0.58201962]
[1765123385782,0.85173996,89407.0,89406.0,0.00027962]
[1765123386192,0.87774519,89407.0,89406.0,0.00027962]
[1765123386382,0.49085,89390.0,89384.0,0.0111866]
[1765123386582,0.151,89397.0,89384.0,0.23534]
[1765123386583,0.49085,89385.0,89384.0,0.23534]
[1765123386782,0.49085,89376.0,89375.0,0.0111878]
[1765123386988,0.49085,89376.0,89374.0,0.2575879]
[1765123386989,0.23878,89375.0,89374.0,0.2575879]
[1765123387184,0.23878,89375.0,89366.0,0.00027975]
[1765123387185,0.49085,89375.0,89369.0,0.0111886]
[1765123387389,0.3608,89376.0,89375.0,0.48174]
[1765123387586,0.3608,89376.0,89366.0,0.00027975]
[1765123387587,0.49085,89367.0,89366.0,0.00027975]
[1765123387896,0.3609174,89367.0,89366.0,0.85201975]
[1765123388090,0.3609174,89367.0,89366.0,0.48201975]
[1765123388390,0.5996974,89367.0,89366.0,0.48201975]
[1765123388594,0.8517674,89367.0,89366.0,0.00027975]
[1765123389194,0.59415,89362.0,89343.0,0.0111919]
[1765123389394,0.151,89349.0,89320.0,0.00099999]
[1765123389592,0.00099999,89310.0,89299.0,0.48174]
[1765123389785,0.011194,89327.0,89308.0,0.4929362]
[1765123389986,0.00016787,89339.0,89308.0,0.48174]
[1765123389987,0.02597368,89326.0,89308.0,0.48174]
[1765123390186,0.0111951,89318.0,89310.0,0.15179]
[1765123390493,0.7216,89311.0,89310.0,0.63353]
[1765123390995,0.0111967,89305.0,89289.0,0.0111986]
[1765123391293,0.7216,89290.0,89289.0,0.48174]
[1765123391598,0.72174082,89290.0,89289.0,0.48174]
[1765123392189,0.00016798,89298.0,89297.0,0.64567]
[1765123392498,0.3608,89314.0,89313.0,0.64567]
[1765123392700,0.3608,89322.0,89321.0,0.6568646]
[1765123393198,0.36088382,89322.0,89321.0,0.6568646]
[1765123394104,0.36088382,89322.0,89315.0,0.0111953]
[1765123394397,0.72168382,89322.0,89315.0,0.0111953]
[1765123394597,0.72168382,89322.0,89321.0,0.001]
[1765123395398,0.72168382,89322.0,89321.0,0.3348446]
[1765123395598,0.72168382,89322.0,89321.0,0.6568646]
[1765123396202,0.00116797,89330.0,89321.0,0.6568646]
[1765123396203,0.00016798,89330.0,89329.0,0.6568636]
[1765123396402,0.3719888,89368.0,89329.0,0.6568636]
[1765123396403,0.3608,89368.0,89352.0,0.0111907]
[1765123396599,0.32134,89356.0,89355.0,0.3608]
[1765123396797,0.64557,89356.0,89346.0,0.0111915]
[1765123396998,0.3608,89368.0,89355.0,0.32365]
[1765123397202,0.64557,89354.0,89353.0,0.3608]
[1765123397500,0.00099999,89360.0,89345.0,0.36096787]
[1765123397501,0.64557,89352.0,89345.0,0.36096787]
[1765123397704,0.64557,89352.0,89350.0,0.011191]
[1765123397905,0.64557,89352.0,89345.0,0.36096787]
[1765123397906,0.32134,89351.0,89345.0,0.36096787]
[1765123398204,4.426e-05,89350.0,89346.0,0.0111915]
[1765123398794,4.426e-05,89350.0,89345.0,0.36096787]
[1765123398994,4.426e-05,89350.0,89345.0,0.37215937]
[1765123399198,0.64557,89346.0,89345.0,0.36096787]
[1765123399406,0.64557,89346.0,89345.0,0.00016787]
[1765123399704,0.64557,89346.0,89345.0,0.36096787]
[1765123400201,4.426e-05,89350.0,89349.0,0.64567]
[1765123400599,0.3608,89377.0,89361.0,0.6568596]
[1765123400793,0.00099999,89370.0,89361.0,1.0176596]
[1765123401195,0.3608,89377.0,89369.0,0.6568586]
[1765123401405,0.3608,89377.0,89371.0,0.0111884]
[1765123401805,0.3608,89377.0,89376.0,0.32365]
[1765123402000,0.35426576,89377.0,89376.0,0.64567]
[1765123402302,0.00099999,89390.0,89376.0,0.64567]
[1765123402303,0.00099999,89390.0,89384.0,0.0111867]
[1765123402508,0.64573787,89385.0,89374.0,0.0111879]
[1765123402698,0.00016787,89385.0,89371.0,0.3608]
[1765123403002,0.00016787,89385.0,89384.0,0.6568567]
[1765123403207,0.00016787,89385.0,89384.0,0.64567]
[1765123403413,0.32150787,89385.0,89379.0,0.0111873]
[1765123403597,0.00016787,89385.0,89384.0,0.64567]
[1765123403793,0.00016787,89385.0,89379.0,0.3608]
[1765123403794,0.32150787,89385.0,89379.0,0.3608]
[1765123404003,0.32150787,89385.0,89378.0,0.0111874]
[1765123404302,0.32250787,89385.0,89378.0,0.0111874]
[1765123404807,0.32150787,89385.0,89378.0,0.0111874]
[1765123406310,0.32150787,89385.0,89384.0,0.64567]
[1765123406311,0.00016787,89385.0,89384.0,0.64567]
[1765123406709,0.00016787,89385.0,89383.0,0.0111868]
[1765123406710,0.32134,89384.0,89383.0,0.0111868]
[1765123407110,0.32134,89384.0,89383.0,0.3348368]
[1765123407412,0.32134,89384.0,89371.0,0.3608]
[1765123407413,0.64557,89384.0,89371.0,0.3608]
[1765123407709,0.64557,89381.0,89380.0,0.0111871]
[1765123408207,0.64557,89381.0,89380.0,0.3719871]
[1765123409209,0.00016787,89385.0,89384.0,0.6568567]
[1765123409607,0.32150787,89385.0,89384.0,0.6568567]
[1765123410006,0.00016787,89385.0,89384.0,0.6568567]
[1765123410313,0.64557,89381.0,89380.0,0.3608]
[1765123410614,0.00099999,89380.0,89372.0,0.3608]
[1765123410803,0.00099999,89380.0,89373.0,0.0111881]
[1765123411003,0.00016787,89385.0,89376.0,0.0111876]
[1765123411208,0.00016787,89385.0,89372.0,0.3608]
[1765123411209,0.00016787,89385.0,89375.0,0.64567]
[1765123411408,0.02614348,89384.0,89375.0,0.79137]
[1765123411611,0.00016787,89385.0,89384.0,0.64567]
[1765123412014,0.00016787,89385.0,89384.0,0.6568567]
[1765123412796,0.88916,89410.0,89384.0,0.6568567]
[1765123412797,0.00076475,89390.0,89384.0,0.6568567]
[1765123413001,0.0111826,89418.0,89402.0,0.0111845]
[1765123413310,0.00076475,89410.0,89402.0,0.0111845]
[1765123413503,0.02615574,89409.0,89401.0,0.1568845]
[1765123414203,0.32134,89402.0,89401.0,0.0111845]
[1765123414403,0.34753849,89402.0,89401.0,0.3348345]
[1765123415016,0.67176849,89402.0,89396.0,0.00016776]
[1765123415219,0.64557,89397.0,89396.0,0.00016776]
[1765123415614,0.01195085,89390.0,89378.0,0.0111874]
[1765123415916,0.32134,89379.0,89370.0,0.3608]
[1765123416103,0.32134,89379.0,89371.0,0.0111884]
[1765123416308,0.32134,89379.0,89375.0,0.0111878]
[1765123416609,0.32134,89376.0,89375.0,0.3348378]
[1765123416808,0.32134,89376.0,89375.0,0.6568578]
[1765123417514,0.00016776,89386.0,89379.0,0.0111873]
[1765123417711,0.02621635,89385.0,89375.0,0.003]
[1765123417911,0.02621635,89384.0,89375.0,0.003]
[1765123418105,0.02621635,89383.0,89376.0,0.0111877]
[1765123418310,0.00016776,89386.0,89376.0,0.0111877]
[1765123418311,0.0111866,89385.0,89376.0,0.0111877]
[1765123418616,0.32134,89376.0,89375.0,0.0141878]
[1765123418806,0.3608,89381.0,89375.0,0.8055578]
[1765123419006,0.00016776,89386.0,89385.0,0.64567]
[1765123420529,0.02116776,89386.0,89385.0,0.64867]
[1765123420711,0.02116776,89386.0,89385.0,1.04867]
[1765123421217,0.0111831,89413.0,89401.0,0.1457]
[1765123421218,0.00076475,89410.0,89401.0,0.1457]
[1765123421421,0.0111826,89417.0,89407.0,0.64567]
[1765123421606,0.38702995,89408.0,89407.0,0.64567]
[1765123421810,0.34756995,89408.0,89407.0,0.64567]
[1765123422109,0.02622995,89408.0,89407.0,0.64567]
[1765123422518,0.02622995,89408.0,89407.0,1.00647]
[1765123422911,0.02622995,89408.0,89407.0,0.64567]
[1765123423207,0.03822995,89408.0,89407.0,0.64667]
[1765123423610,0.03922995,89408.0,89407.0,0.64667]
[1765123423812,0.02722995,89408.0,89407.0,1.00647]
[1765123424019,0.04022995,89408.0,89407.0,1.00747]
[1765123425419,0.04022995,89408.0,89407.0,1.00647]
[1765123425420,0.03022995,89408.0,89407.0,1.00647]
[1765123425617,0.37035995,89408.0,89407.0,1.00647]
[1765123426020,0.70132995,89408.0,89407.0,1.00647]
[1765123426322,0.34013,89405.0,89401.0,0.1457]
[1765123426519,0.03122995,89408.0,89386.0,0.3608]
[1765123426520,0.00076475,89400.0,89386.0,0.3608]
[1765123426723,0.00076475,89390.0,89379.0,0.0111872]
[1765123427022,0.00076475,89390.0,89375.0,0.19903]
[1765123427023,0.69632995,89389.0,89383.0,0.0111868]
[1765123427218,0.02622995,89388.0,89378.0,0.0111874]
[1765123427524,0.00076475,89390.0,89378.0,0.0111874]
[1765123427525,0.02622995,89387.0,89378.0,0.3719874]
[1765123427819,0.69632995,89386.0,89385.0,0.32455]
[1765123428127,0.6701,89379.0,89378.0,0.68535]
[1765123428326,0.69632995,89379.0,89378.0,0.68535]
[1765123428510,0.02622995,89379.0,89378.0,1.04098]
[1765123428715,0.02638252,89385.0,89384.0,0.3357367]
[1765123429027,0.69648252,89385.0,89379.0,0.0111873]
[1765123429214,0.69648252,89385.0,89378.0,0.3608]
[1765123429215,0.34013,89385.0,89384.0,0.68018]
[1765123429415,0.02639733,89385.0,89384.0,0.68018]
[1765123429922,0.03039733,89385.0,89384.0,0.68018]
[1765123430220,0.06408994,89385.0,89384.0,0.68018]
[1765123430524,0.09048727,89385.0,89384.0,0.68018]
[1765123430721,0.03039733,89385.0,89384.0,0.68018]
[1765123432020,0.03139733,89385.0,89384.0,0.68018]
[1765123432620,0.70149733,89385.0,89379.0,0.0111874]
[1765123432816,0.34013,89380.0,89379.0,0.6913674]
[1765123433017,0.02639733,89380.0,89379.0,0.6913674]
[1765123433218,0.36652733,89380.0,89379.0,0.6913674]
[1765123434030,0.36852733,89380.0,89379.0,0.6913674]
[1765123434232,0.02839733,89380.0,89379.0,0.6913674]
[1765123434530,0.02839733,89380.0,89379.0,0.68018]
[1765123434720,0.36852733,89380.0,89379.0,0.68018]
[1765123434922,0.02839733,89380.0,89379.0,0.6913674]
[1765123435533,0.02618953,89380.0,89379.0,0.6913674]
[1765123436332,0.00016776,89392.0,89391.0,0.649]
[1765123436629,0.00016776,89392.0,89391.0,1.0098]
[1765123438523,0.00216776,89392.0,89391.0,1.0098]
[1765123439626,0.00116776,89392.0,89391.0,1.0098]
[1765123441625,0.00016776,89392.0,89391.0,1.0098]
[1765123441832,0.00116776,89392.0,89391.0,1.0098]
[1765123442332,0.06008994,89417.0,89411.0,0.649]
[1765123442630,0.06008994,89417.0,89408.0,0.20616]
[1765123442631,0.68046,89421.0,89420.0,0.3242]
[1765123442833,0.68046,89421.0,89420.0,0.649]
[1765123444033,0.35409,89421.0,89420.0,0.649]
[1765123445127,0.3608,89422.0,89414.0,0.3608]
[1765123445128,0.00016776,89429.0,89428.0,0.649]
[1765123446627,0.00116776,89429.0,89428.0,0.649]
[1765123448838,0.0268907,89429.0,89428.0,0.649]
[1765123449139,0.09960232,89472.0,89471.0,0.649]
[1765123449430,0.35409,89472.0,89471.0,0.6601758]
[1765123449634,0.68046,89472.0,89471.0,0.0111758]
[1765123449839,0.68046,89472.0,89471.0,0.3719758]
[1765123450132,0.00076475,89480.0,89479.0,0.649]
[1765123450133,0.00016765,89480.0,89479.0,0.649]
[1765123450337,0.00016765,89480.0,89479.0,1.21596]
[1765123450832,0.00016765,89480.0,89479.0,1.0098]
[1765123451330,0.00016765,89480.0,89479.0,1.2271349]
[1765123451536,0.00016765,89480.0,89479.0,1.0209749]
[1765123452632,0.00016765,89480.0,89479.0,1.2316449]
[1765123453336,0.00016765,89480.0,89479.0,1.0209749]
[1765123458055,0.68692765,89480.0,89479.0,0.3608]
[1765123458643,0.68692765,89480.0,89479.0,1.04944]
[1765123458830,0.00016765,89480.0,89479.0,1.04944]
[1765123462346,0.00016765,89480.0,89479.0,1.57708]
[1765123462645,0.33482765,89480.0,89479.0,1.57708]
[1765123463749,0.33582765,89480.0,89479.0,1.57708]
[1765123464552,0.33482765,89480.0,89479.0,1.57708]
[1765123464846,0.33582765,89480.0,89479.0,1.57708]
[1765123466243,0.33482765,89480.0,89479.0,1.57708]
[1765123466445,0.00016765,89480.0,89479.0,1.57708]
[1765123467251,0.0111717,89505.0,89485.0,0.89931]
[1765123468037,0.0111718,89504.0,89485.0,1.4380041]
[1765123468242,0.35984,89524.0,89485.0,1.8480041]
[1765123468243,0.00010889,89494.0,89485.0,1.8480041]
[1765123469042,0.00010889,89494.0,89485.0,1.4380041]
[1765123469547,0.00010889,89494.0,89485.0,1.4390041]
[1765123469847,0.00010889,89494.0,89485.0,1.4400041]
[1765123471752,0.00010889,89494.0,89485.0,0.7018141]
[1765123471952,0.00010889,89494.0,89485.0,1.3680441]
[1765123474746,0.68703937,89486.0,89485.0,0.69064]
[1765123477759,0.68703937,89486.0,89485.0,0.002]
[1765123477962,0.33466,89465.0,89464.0,0.6998167]
[1765123478543,0.33476889,89473.0,89472.0,0.33149]
[1765123478859,0.68676,89469.0,89468.0,0.3608]
[1765123480256,0.68676,89469.0,89468.0,0.3628]
[1765123483247,0.32019889,89473.0,89472.0,0.66138]
[1765123483652,0.00010889,89473.0,89472.0,0.66138]
[1765123485056,0.00010889,89473.0,89472.0,1.18874]
[1765123485261,0.32036937,89486.0,89485.0,0.6725541]
[1765123485555,0.32036937,89486.0,89485.0,1.0333541]
[1765123485556,0.00027937,89486.0,89485.0,1.0333541]
[1765123486063,0.64683937,89486.0,89485.0,1.3941541]
[1765123486652,0.00027937,89486.0,89485.0,1.3941541]
[1765123487553,0.64683937,89486.0,89485.0,0.3608]
[1765123487862,0.64656,89474.0,89473.0,0.3379555]
[1765123488069,0.64656,89481.0,89480.0,0.32678]
[1765123488258,0.64656,89481.0,89480.0,0.66138]
[1765123488761,0.32009,89481.0,89480.0,0.66138]
[1765123488954,0.32036937,89486.0,89485.0,0.6725541]
[1765123489551,0.64683937,89486.0,89485.0,0.6725541]
[1765123490760,0.64683937,89486.0,89485.0,0.66138]
[1765123492461,0.64656,89480.0,89479.0,0.6725548]
[1765123495960,0.64656,89480.0,89478.0,0.3608]
[1765123495961,0.6577349,89479.0,89478.0,0.3608]
[1765123496357,0.6577367,89464.0,89454.0,0.0111779]
[1765123496562,0.6577367,89464.0,89458.0,0.0111775]
[1765123497158,0.64656,89464.0,89462.0,0.0111769]
[1765123497761,0.64656,89464.0,89463.0,0.66154765]
[1765123497963,0.64732475,89470.0,89469.0,0.66138]
[1765123498163,0.64656,89470.0,89469.0,0.6725561]
[1765123498569,0.64656,89466.0,89465.0,0.0111765]
[1765123499362,0.64656,89465.0,89464.0,0.3608]
[1765123500480,0.64656,89465.0,89440.0,0.03912226]
[1765123500481,0.6356896,89441.0,89440.0,0.03912226]
[1765123500659,0.62451,89437.0,89436.0,0.0111802]
[1765123500860,0.62451,89433.0,89432.0,0.0111807]
[1765123501058,0.62451,89433.0,89427.0,0.3608]
[1765123501059,0.62451,89428.0,89427.0,0.7216]
[1765123501265,0.62451,89428.0,89427.0,0.3608]
[1765123501668,0.18548,89430.0,89422.0,0.00014262]
[1765123501669,0.62451,89423.0,89422.0,0.00014262]
[1765123502067,0.62451,89423.0,89422.0,0.01132462]
[1765123502263,0.62451,89423.0,89422.0,0.32197262]
[1765123502465,0.52716,89427.0,89423.0,0.0111819]
[1765123502761,0.32113,89428.0,89427.0,0.6476614]
[1765123503096,0.32113,89432.0,89431.0,0.3330108]
[1765123503276,0.18548,89440.0,89435.0,0.63648]
[1765123503464,0.3608,89445.0,89435.0,0.63648]
[1765123504175,0.62467765,89436.0,89435.0,0.32183]
[1765123504379,0.00016765,89436.0,89435.0,0.63648]
[1765123504870,0.00316765,89436.0,89435.0,0.63648]
[1765123505270,0.6356886,89450.0,89449.0,0.63648]
[1765123505470,0.62451,89446.0,89445.0,0.3608]
[1765123507067,0.68193,89454.0,89453.0,0.32183]
[1765123507268,0.98531,89454.0,89453.0,0.32183]
[1765123507468,0.98531,89454.0,89453.0,0.63648]
[1765123507670,0.32189475,89460.0,89459.0,0.32183]
[1765123507878,0.62451,89454.0,89453.0,0.3608]
[1765123508275,0.62451,89454.0,89453.0,1.0084581]
[1765123509573,0.32113,89454.0,89453.0,1.0084581]
[1765123509771,0.18724475,89460.0,89459.0,0.6476574]
[1765123509772,0.001,89460.0,89459.0,0.6476574]
[1765123510277,0.5272,89480.0,89473.0,0.0111755]
[1765123510476,0.32113,89477.0,89476.0,0.32183]
[1765123510780,0.62451,89469.0,89468.0,0.00016765]
[1765123511277,0.5383747,89480.0,89473.0,0.0111755]
[1765123511481,0.1966542,89484.0,89473.0,0.0111755]
[1765123511775,0.30427,89484.0,89483.0,0.30583]
[1765123511978,0.61437,89484.0,89483.0,0.30583]
[1765123512177,0.61437,89481.0,89480.0,0.0111746]
[1765123512377,0.00027937,89486.0,89478.0,0.3608]
[1765123512378,0.61437,89479.0,89478.0,0.3608]
[1765123512776,0.61437,89479.0,89478.0,0.66663]
[1765123513978,0.61437,89479.0,89478.0,0.3608]
[1765123516575,0.61437,89469.0,89468.0,0.00016765]
[1765123516880,0.001,89479.0,89468.0,0.00016765]
[1765123517080,0.61437,89478.0,89477.0,0.66663]
[1765123517285,0.61437,89478.0,89477.0,0.97551]
[1765123517974,0.18853,89484.0,89477.0,0.3608]
[1765123518372,0.8029,89484.0,89483.0,0.0111744]
[1765123520078,0.61437,89484.0,89483.0,0.6258844]
[1765123520283,0.52708,89485.0,89484.0,0.61471]
[1765123520593,0.83135,89485.0,89484.0,0.61471]
[1765123520980,0.00027937,89486.0,89485.0,0.8005941]
[1765123521179,0.00027937,89486.0,89485.0,1.1613941]
[1765123523187,0.61437,89501.0,89500.0,0.6258822]
[1765123523490,0.61437,89501.0,89500.0,0.9866822]
[1765123523882,0.0111707,89513.0,89504.0,0.0111717]
[1765123524088,0.18853,89518.0,89504.0,0.0111717]
[1765123524089,0.61437,89505.0,89504.0,0.0111717]
[1765123524280,0.61437,89501.0,89500.0,0.66663]
[1765123524480,0.008,89501.0,89500.0,1.16207]
[1765123525085,0.00076475,89510.0,89509.0,0.6258811]
[1765123525086,0.30427,89510.0,89509.0,0.6258811]
[1765123525691,0.61437,89510.0,89509.0,0.6258811]
[1765123525898,0.30427,89510.0,89509.0,0.6258811]
[1765123526189,0.30427,89510.0,89509.0,0.9866811]
[1765123526392,0.61437,89517.0,89516.0,0.6258802]
[1765123526785,0.61437,89517.0,89509.0,0.3608]
[1765123526786,0.3608,89539.0,89525.0,0.61471]
[1765123526982,0.61464925,89526.0,89525.0,0.61471]
[1765123527791,0.62664925,89526.0,89525.0,0.61471]
[1765123527991,0.63064925,89526.0,89525.0,0.61471]
[1765123528589,0.32054925,89526.0,89525.0,0.61471]
[1765123528792,0.01627925,89526.0,89525.0,0.61471]
[1765123528990,0.63064925,89526.0,89525.0,0.30583]
[1765123529195,0.63064925,89526.0,89525.0,0.3169991]
[1765123529495,0.63064925,89526.0,89525.0,0.0121691]
[1765123529496,0.62664925,89526.0,89525.0,0.0121691]
[1765123529686,0.62664925,89526.0,89525.0,0.001]
[1765123529997,0.61464925,89526.0,89525.0,0.006]
[1765123530696,0.61464925,89526.0,89525.0,0.005]
[1765123531097,0.61437,89521.0,89520.0,0.66663]
[1765123531290,0.61437,89521.0,89520.0,0.97551]
[1765123531995,0.61437,89521.0,89520.0,0.66663]
[1765123532390,0.8029,89518.0,89517.0,0.00016755]
[1765123533001,0.6242912,89508.0,89507.0,0.3608]
[1765123533296,0.30427,89492.0,89491.0,0.6258833]
[1765123533501,0.61437,89492.0,89491.0,0.6258833]
[1765123533892,0.54933,89507.0,89498.0,0.61471]
[1765123534097,0.61437,89507.0,89506.0,0.30583]
[1765123534491,0.00016721,89511.0,89510.0,0.61471]
[1765123534687,0.30443721,89511.0,89510.0,0.97551]
[1765123535199,0.61453721,89511.0,89510.0,0.3608]
[1765123535400,0.61453721,89511.0,89510.0,0.97551]
[1765123535600,0.30443721,89511.0,89510.0,0.97551]
[1765123536599,0.30443721,89511.0,89510.0,0.97651]
[1765123536791,0.30443721,89511.0,89510.0,0.98351]
[1765123537192,0.00016721,89511.0,89510.0,0.98351]
[1765123537786,0.61453721,89511.0,89510.0,0.98351]
[1765123538195,0.00016721,89511.0,89510.0,0.98351]
[1765123539393,0.61453721,89511.0,89510.0,0.98351]
[1765123539699,0.61453721,89511.0,89510.0,0.3688]
[1765123540794,0.61453721,89511.0,89510.0,0.3618]
[1765123540795,0.62570811,89511.0,89510.0,0.3618]
[1765123541103,0.62570811,89511.0,89510.0,0.3678]
[1765123541405,0.62570811,89511.0,89510.0,0.007]
[1765123542302,0.62570811,89511.0,89510.0,0.001]
[1765123542498,0.62570811,89511.0,89510.0,0.006]
[1765123542902,0.62570811,89511.0,89510.0,0.001]
[1765123543104,0.558292,89502.0,89501.0,0.3608]
[1765123543595,0.54712,89502.0,89501.0,0.3608]
[1765123544201,0.54712,89502.0,89501.0,0.87406]
[1765123545309,0.54712,89502.0,89501.0,0.87706]
[1765123546104,0.54712,89510.0,89509.0,0.2681211]
[1765123546405,1.25668,89510.0,89509.0,0.61775]
[1765123546708,0.54712,89510.0,89509.0,0.8852311]
[1765123547207,0.54712,89510.0,89509.0,0.8882311]
[1765123549107,0.00016721,89511.0,89510.0,0.51326]
[1765123549405,0.00016721,89511.0,89510.0,0.68815]
[1765123549611,0.27744721,89511.0,89510.0,0.51326]
[1765123549800,0.00016721,89511.0,89510.0,0.63861]
[1765123550804,0.00076475,89520.0,89511.0,0.0111708]
[1765123551107,0.00027925,89526.0,89525.0,0.5244291]
[1765123551299,0.27755925,89526.0,89525.0,0.5244291]
[1765123551504,0.54712,89521.0,89520.0,0.3719696]
[1765123551903,0.54712,89521.0,89520.0,0.6289196]
[1765123552201,0.27728,89521.0,89520.0,0.8852296]
[1765123552508,0.00027925,89526.0,89525.0,0.5244291]
[1765123554306,0.00027925,89526.0,89525.0,0.5254291]
[1765123554612,0.54739925,89526.0,89525.0,0.5254291]
[1765123555315,0.54739925,89526.0,89525.0,0.5304291]
[1765123558611,0.00027925,89526.0,89525.0,0.5304291]
[1765123560314,0.27728,89539.0,89538.0,0.52439]
[1765123560517,0.27728,89539.0,89538.0,0.88519]
[1765123561017,0.51831,89539.0,89538.0,1.24189]
[1765123561224,0.51831,89526.0,89525.0,0.5374591]
[1765123561716,0.51831,89526.0,89525.0,0.5314591]
[1765123562222,0.26625,89526.0,89525.0,0.5314591]
[1765123562415,0.26625,89526.0,89525.0,0.5364591]
[1765123562812,0.51831,89526.0,89525.0,0.2700191]
[1765123563128,0.51831,89526.0,89525.0,0.5374591]
[1765123563318,0.51831,89531.0,89530.0,0.5314584]
[1765123565614,0.51831,89531.0,89530.0,0.5344584]
[1765123566322,0.91831,89531.0,89530.0,0.003]
[1765123566523,0.51831,89513.0,89507.0,0.3608]
[1765123568724,0.51931,89513.0,89507.0,0.3608]
[1765123569626,0.51831,89513.0,89507.0,0.3608]
[1765123571127,0.51931,89513.0,89507.0,0.3608]
[1765123571330,0.52031,89513.0,89507.0,0.3608]
[1765123571922,0.51931,89513.0,89507.0,0.3608]
[1765123572323,0.51831,89513.0,89507.0,0.3608]
[1765123573232,0.51931,89513.0,89507.0,0.3608]